[Event "4NCL 2022-2023"]
[Site "Daventry"]
[Date "2023.03.19"]
[Round "8.15"]
[White "Ghasi, Ameet K"]
[Black "Camacho Collados, Jose"]
[Result "1-0"]
[ECO "A07"]
[WhiteElo "2471"]
[BlackElo "2406"]
[Annotator "TA"]
[PlyCount "99"]
[EventDate "2022.10.20"]
[EventType "team-tourn"]
[EventCountry "ENG"]
[SourceTitle "playchess.com"]
[Source "ChessBase"]
[SourceQuality "1"]
[TimeControl "40/6000+30:2400+30"]

{[%evp 9,99,0,10,0,0,-28,-24,-24,-25,-11,0,-4,23,-16,4,23,39,-6,13,21,68,51,64,59,134,150,154,90,96,86,96,98,94,67,122,107,199,199,185,192,199,199,199,199,199,199,197,195,174,178,287,285,271,272,268,266,361,218,816,813,810,810,777,752,1353,1225,2214,2272,2260,2275,2335,2166,5986,2400,6848,6609,29982,29983,29986,29987,29987,29984,29988,29987,29987,29988,29989,29990,29995,29996,29997,29998]} 1. Nf3 {[%emt 0:00:40]} Nf6 {[%emt 0:00:06]} 2. g3 {[%emt 0:00:04]} d5 {[%emt 0:00:12]} 3. Bg2 {[%emt 0:00:06]} e6 {[%emt 0:00:09]} 4. O-O {[%emt 0:00:59]} Be7 {[%emt 0:01:16]} 5. d3 {[%emt 0:00:04]} b6 {[%emt 0:00:33]} 6. Nc3 {[%emt 0:02:59] A07: Réti Opening: New York and Capablanca Systems.} Bb7 {[%emt 0:02:27]} 7. Nd2 {[%emt 0:00:23]} c5 {[%emt 0:02:30]} 8. e4 {[%emt 0:00:18] Black has an edge.} Nc6 {[%emt 0:01:32]} 9. f4 {[%emt 0:01:37]} dxe4 {[%emt 0:08:52] [#]} 10. dxe4 $146 {[%emt 0:01:11]} ({Predecessor:} 10. Ndxe4 O-O {½-½ Lornye,P (2264)-Olhovik,A (2299) Benidorm op U2300 16th 2017 (9)}) 10... h5 {[%emt 0:05:45]} 11. h3 {[%emt 0:26:53]} (11. e5 $5 {[%cal Re5f6]} Nd5 12. Nc4 Nxc3 13. bxc3 $14) 11... Qd4+ {[%emt 0:06:46]} 12. Rf2 {[%emt 0:01:22]} O-O-O {[%emt 0:03:48]} 13. e5 {[%emt 0:05:53]} Ne8 {[%emt 0:03:22]} 14. Qf1 {[%emt 0:11:55]} f6 {[%emt 0:20:46]} (14... Nc7 $11 {is more appropriate.}) 15. Nc4 $36 {[%emt 0:08:09][%mdl 2048] Threatens to win with Nb5. White has some pressure.} Qd7 {[%emt 0:04:49]} 16. a4 {[%emt 0:01:32] a5 would be deadly. White is much more active. The black rooks are badly placed.} (16. Be3 $5 {[%cal Ra2a4]}) 16... Na5 {[%emt 0:12:46]} (16... Nd4 $1 $14) 17. Nxa5 $16 {[%emt 0:03:14]} bxa5 {[%emt 0:00:36]} 18. Qb5 {[%emt 0:08:13]} (18. Bd2 $142) 18... Bxg2 {[%emt 0:03:44]} 19. Rxg2 {[%emt 0:01:32]} h4 {[%emt 0:11:23]} 20. Be3 {[%emt 0:04:52] Against Qd4} (20. Qa6+ {is interesting.} Kb8 21. Be3 Nc7 22. Qxa5 Qc6 23. Nb5) 20... hxg3 {[%emt 0:03:36]} 21. Rxg3 {[%emt 0:00:52]} (21. Bxc5 $2 {is the wrong capture.} Qxb5 22. axb5 Bxc5+ $19) (21. Qa6+ {with more complications.} Qb7 22. Qxe6+ Qd7 23. Qxd7+ Rxd7 24. e6) 21... fxe5 {[%emt 0:01:27]} ({Better is} 21... Qb7 $1 $14) 22. fxe5 {[%emt 0:00:41]} Qxb5 {[%emt 0:02:42]} (22... Qb7 $16) 23. axb5 $18 {[%emt 0:00:09]} ({Not} 23. Nxb5 Rh5 $11) 23... Rh5 {[%emt 0:00:19] Black is weak on the light squares} 24. Rxa5 {[%emt 0:02:31]} Kb7 {[%emt 0:00:01] [#]} 25. b4 $1 {[%emt 0:09:08][%cal Bb2b4,Bb4a5,Ba5a6][%mdl 544]} Rxe5 {[%emt 0:01:51] [#]} 26. Na4 $1 {[%emt 0:00:14]} Rd1+ {[%emt 0:03:13] [#]} 27. Kg2 $1 {[%emt 0:00:26][%cal Rb4c5]} Bd8 {[%emt 0:03:11]} 28. Nxc5+ {[%emt 0:10:37]} Rxc5 {[%emt 0:00:02]} 29. Bxc5 {[%emt 0:00:09]} Bxa5 {[%emt 0:00:19]} (29... Rd2+ $142 30. Kf1 Bxa5) 30. bxa5 {[%emt 0:00:01][%mdl 4096] Endgame KRB-KRN} Rd2+ {[%emt 0:00:22]} 31. Bf2 {[%emt 0:01:24]} Rxc2 {[%emt 0:00:28]} 32. a6+ {[%emt 0:05:12]} Kc7 {[%emt 0:00:50]} 33. Rg5 {[%emt 0:00:18]} Kd6 $2 {[%emt 0:02:43]} (33... Rb2 34. Kg3 Rb3+ 35. Kh4 Kb8) 34. Kf3 {[%emt 0:00:40]} Rc3+ {[%emt 0:00:15]} 35. Ke2 {[%emt 0:00:13]} Rc2+ {[%emt 0:00:02]} 36. Ke1 {[%emt 0:00:13]} Rc1+ {[%emt 0:04:51]} 37. Kd2 {[%emt 0:00:02]} Rh1 {[%emt 0:00:17]} 38. Bxa7 {[%emt 0:00:27]} Rh2+ {[%emt 0:00:04]} 39. Kc3 {[%emt 0:01:34] Threatening mate with Bb8+.} Rxh3+ {[%emt 0:00:17]} 40. Kb4 {[%emt 0:00:27] And now Bb8+ would win.} Rh1 {[%emt 0:01:25]} 41. Ka5 {[%emt 0:41:30]} (41. Bb8+ $142 Kd7 42. Be5 Rb1+ 43. Ka5) 41... Kd7 {[%emt 0:00:16]} 42. Bb8 {[%emt 0:00:00]} Kc8 {[%emt 0:03:53]} 43. Be5 {[%emt 0:00:00] White mates.} Rd1 {[%emt 0:04:36]} 44. b6 {[%emt 0:00:00]} Rd5+ {[%emt 0:02:58]} 45. Kb4 {[%emt 0:00:00]} Nd6 {[%emt 0:05:38] [#]} 46. Bxd6 $1 {[%emt 0:00:00][%mdl 64] Deflection} Rxd6 {[%emt 0:00:17]} 47. Rc5+ {[%emt 0:00:00]} ({Less strong is} 47. Rxg7 Rxb6+ 48. Ka5 Rb1 $18) 47... Kb8 {[%emt 0:00:16]} 48. Kb5 {[%emt 0:00:00]} Rd8 {[%emt 0:08:41]} 49. a7+ {[%emt 0:00:00]} Ka8 {[%emt 0:00:26]} 50. Ka6 {[%emt 0:00:00] Artfully played by Ghasi.   Weighted Error Value: White=0.10 (very precise) /Black=0.34} 1-0

[Event "4NCL 2022-2023"]
[Site "Daventry"]
[Date "2023.03.19"]
[Round "8.16"]
[White "Navrotescu, Andreea"]
[Black "Foisor, Mihaela-Veronica"]
[Result "1/2-1/2"]
[ECO "D35"]
[WhiteElo "2258"]
[BlackElo "2195"]
[Annotator "TA"]
[PlyCount "171"]
[EventDate "2022.10.20"]
[EventType "team-tourn"]
[EventCountry "ENG"]
[SourceTitle "playchess.com"]
[Source "ChessBase"]
[SourceQuality "1"]
[TimeControl "40/6000+30:2400+30"]

{[%evp 13,171,12,16,16,16,26,40,25,39,21,31,14,50,48,52,52,52,57,61,0,0,0,59,60,60,58,69,64,64,64,66,59,64,64,64,64,70,35,41,24,75,71,67,71,81,70,77,72,79,46,46,43,66,38,74,74,80,0,0,-12,0,0,0,0,0,0,0,0,0,0,0,0,0,0,0,0,0,0,0,0,0,0,0,0,0,0,0,0,0,0,0,0,0,0,0,0,0,0,0,0,0,0,0,0,0,0,0,0,0,0,0,0,0,0,0,0,0,0,0,0,0,0,0,0,0,0,0,0,0,0,0,0,0,0,0,0,0,0,0,0,0,0,0,0,0,0,0,0,0,0,0,0,0,0,0,0,0,0,0,0]} 1. d4 {[%emt 0:05:11]} d5 {[%emt 0:00:41]} 2. c4 {[%emt 0:00:05]} e6 {[%emt 0:00:04]} 3. Nc3 {[%emt 0:00:04]} Nf6 {[%emt 0:01:15]} 4. cxd5 {[%emt 0:00:06]} exd5 {[%emt 0:01:11]} 5. Bg5 {[%emt 0:00:11]} Be7 {[%emt 0:00:50]} 6. e3 {[%emt 0:00:05]} c6 {[%emt 0:10:36]} 7. Bd3 {[%emt 0:03:24]} O-O {[%emt 0:00:13]} 8. h3 {[%emt 0:00:06] D35: Queen's Gambit Declined: Exchange Variation.} Re8 {[%emt 0:00:44]} 9. Bf4 {[%emt 0:01:15]} c5 {[%emt 0:05:36]} 10. Nf3 {[%emt 0:00:29] White is slightly better.} c4 {[%emt 0:17:18]} 11. Bc2 {[%emt 0:00:48] [#]} Nc6 $146 {[%emt 0:19:28]} ({Predecessor:} 11... a6 12. O-O b5 13. a3 Bb7 14. Ne5 Nbd7 15. Qf3 Nf8 16. g4 Bd6 17. Qg2 Ng6 18. Bxg6 hxg6 {½-½ Mista,A (2561)-Radulski,J (2572) SRB-chT Central 2011 (10.6)}) 12. O-O {[%emt 0:00:32]} a6 {[%emt 0:00:04]} 13. Ne5 {[%emt 0:03:36]} Bd6 {[%emt 0:07:48]} 14. Nxc6 {[%emt 0:00:39]} bxc6 {[%emt 0:00:03]} 15. Bxd6 {[%emt 0:00:37]} Qxd6 {[%emt 0:00:02]} 16. b3 {[%emt 0:00:14]} (16. Na4 $14) 16... cxb3 $11 {[%emt 0:05:55]} 17. axb3 {[%emt 0:02:09]} c5 {[%emt 0:01:42]} (17... Bxh3 $1 $11 18. gxh3 Rxe3 19. fxe3 (19. Bxh7+ Nxh7 20. fxe3 Qg3+ 21. Kh1 Qxh3+ 22. Kg1 Qxe3+ 23. Kg2 Qxc3 $15) 19... Qg3+ 20. Kh1 Qxh3+ 21. Kg1 Qg3+ 22. Kh1 Qh3+ 23. Kg1 Qg3+ 24. Kh1 Qh3+) 18. dxc5 {[%emt 0:05:31]} Qxc5 {[%emt 0:00:13]} 19. Ne2 {[%emt 0:01:39]} Bd7 {[%emt 0:03:09]} 20. Qd2 {[%emt 0:05:59]} Bb5 {[%emt 0:03:49]} 21. Rfc1 {[%emt 0:00:30][%cal Oc2h7]} Qb6 {[%emt 0:01:43]} 22. Qd4 {[%emt 0:04:33]} Rab8 {[%emt 0:04:34]} 23. Qxb6 {[%emt 0:01:01]} Rxb6 {[%emt 0:00:02]} 24. Nd4 {[%emt 0:00:08]} g6 {[%emt 0:03:59]} 25. Nxb5 {[%emt 0:02:07]} axb5 {[%emt 0:00:07]} 26. b4 {[%emt 0:00:11]} Rc8 {[%emt 0:01:57]} (26... d4 $11 {remains equal.}) 27. Bd3 $16 {[%emt 0:00:21]} Rxc1+ {[%emt 0:00:25]} 28. Rxc1 {[%emt 0:00:02][%mdl 4096] Endgame KRB-KRN} Nd7 {[%emt 0:03:43] Prevents Rc5.} 29. Rc8+ {[%emt 0:10:24]} Kg7 {[%emt 0:00:41]} 30. Rd8 {[%emt 0:00:12]} Rb7 {[%emt 0:05:34]} 31. Kf1 {[%emt 0:00:34] White is more active.} Kf6 {[%emt 0:00:27]} 32. Ke2 {[%emt 0:02:10]} Ke7 {[%emt 0:02:15]} 33. Ra8 {[%emt 0:06:59]} Nb8 {[%emt 0:00:15] [#]} 34. Kd2 $1 {[%emt 0:00:44]} Nc6 {[%emt 0:00:57] Prevents Ra5.} 35. Rh8 {[%emt 0:08:13]} (35. Kc3 $16) 35... Nxb4 $11 {[%emt 0:02:37] The position is equal.} 36. Bb1 {[%emt 0:09:27]} Kf6 {[%emt 0:02:48]} 37. Rxh7 {[%emt 0:00:08]} Ra7 {[%emt 0:01:13]} 38. Kc3 {[%emt 0:01:43]} Nc6 {[%emt 0:00:44]} 39. Rh8 {[%emt 0:00:25]} b4+ {[%emt 0:01:21]} 40. Kb2 {[%emt 0:00:02]} d4 {[%emt 0:02:57]} 41. exd4 {[%emt 0:47:28]} Nxd4 {[%emt 0:40:48]} 42. Rb8 {[%emt 0:00:05]} b3 {[%emt 0:00:00]} 43. Rb4 {[%emt 0:00:00]} Ke5 {[%emt 0:00:00]} 44. f4+ {[%emt 0:00:00]} Kd5 $1 {[%emt 0:00:00]} 45. Kc3 {[%emt 0:00:00]} Rc7+ {[%emt 0:00:00]} 46. Kd2 {[%emt 0:00:00]} Ra7 {[%emt 0:00:00]} 47. Kd3 {[%emt 0:00:00]} Ne6 {[%emt 0:00:00] [#] ...Ra1 is the strong threat.} 48. Kc3 {[%emt 0:00:00]} Nc5 {[%emt 0:00:00]} 49. f5 {[%emt 0:00:00]} gxf5 {[%emt 0:00:00]} 50. Bxf5 {[%emt 0:00:00]} Ra2 {[%emt 0:00:00]} 51. Rg4 {[%emt 0:00:00]} Rf2 {[%emt 0:00:00]} 52. Bb1 {[%emt 0:00:00]} b2 {[%emt 0:00:00]} 53. Rg5+ {[%emt 0:00:00]} Kd6 {[%emt 0:00:00]} 54. h4 {[%emt 0:00:00]} Ne6 {[%emt 0:00:00]} 55. Rg8 {[%emt 0:00:04]} Nf4 {[%emt 0:00:00]} 56. g4 {[%emt 0:02:29]} Rh2 {[%emt 0:00:00]} 57. h5 {[%emt 0:03:12]} Nd5+ {[%emt 0:00:00]} 58. Kb3 {[%emt 0:01:31]} Nf6 {[%emt 0:00:00]} 59. Rg7 {[%emt 0:01:29]} Ke5 {[%emt 0:03:13]} 60. g5 {[%emt 0:06:45]} Rxh5 {[%emt 0:01:53]} 61. gxf6 {[%emt 0:00:10]} Kxf6 {[%emt 0:00:02] KRB-KR} 62. Rg1 {[%emt 0:00:28]} Rb5+ {[%emt 0:00:15]} 63. Kc3 {[%emt 0:00:06]} Ke6 {[%emt 0:03:11]} 64. Ba2+ {[%emt 0:00:05]} Kd6 {[%emt 0:01:19]} 65. Bb3 {[%emt 0:00:06]} f5 {[%emt 0:00:29]} 66. Kxb2 {[%emt 0:00:05]} Rc5 {[%emt 0:01:33]} 67. Bc2 {[%emt 0:00:08]} Ke5 {[%emt 0:00:27]} 68. Re1+ {[%emt 0:00:18]} Kf4 {[%emt 0:00:46]} 69. Rf1+ {[%emt 0:00:05]} Kg4 {[%emt 0:00:20]} 70. Kc1 {[%emt 0:00:18]} Rd5 {[%emt 0:00:16]} 71. Bd1+ {[%emt 0:00:16]} Kg3 {[%emt 0:01:16]} 72. Rf3+ {[%emt 0:00:05]} Kg2 {[%emt 0:00:29][%cal Od5d1] Hoping for ...Rxd1+!} 73. Rc3 {[%emt 0:00:03] Strongly threatening Bf3+.} Kf2 {[%emt 0:00:19]} 74. Bf3 {[%emt 0:00:13]} Rd4 {[%emt 0:00:25]} 75. Bb7 {[%emt 0:00:10]} f4 {[%emt 0:00:34]} 76. Kc2 {[%emt 0:00:08]} Ke2 {[%emt 0:00:33]} 77. Ba6+ {[%emt 0:00:17]} Kf2 {[%emt 0:00:22]} 78. Bd3 {[%emt 0:00:08]} Ke3 {[%emt 0:00:54]} 79. Bf5+ {[%emt 0:00:30]} Ke2 {[%emt 0:00:30]} 80. Bg4+ {[%emt 0:00:04]} Ke1 {[%emt 0:00:45]} 81. Rf3 {[%emt 0:31:40]} Ra4 {[%emt 0:00:18]} 82. Be6 {[%emt 0:00:00]} Ke2 {[%emt 0:00:16]} 83. Rd3 {[%emt 0:00:00]} f3 {[%emt 0:00:23]} 84. Rd2+ {[%emt 0:00:00]} Ke3 {[%emt 0:00:38]} 85. Bd5 {[%emt 0:00:00]} Rd4 {[%emt 0:01:05]} 86. Rxd4 {[%emt 0:00:00] Weighted Error Value: White=0.06 (flawless) /Black=0.06 (flawless)} 1/2-1/2

[Event "4NCL 2022-2023"]
[Site "Daventry"]
[Date "2023.03.19"]
[Round "8.17"]
[White "Gallana, Marco"]
[Black "Erdos, Viktor"]
[Result "1/2-1/2"]
[ECO "D27"]
[WhiteElo "2257"]
[BlackElo "2587"]
[Annotator "TA"]
[PlyCount "137"]
[EventDate "2022.10.20"]
[EventType "team-tourn"]
[EventCountry "ENG"]
[SourceTitle "playchess.com"]
[Source "ChessBase"]
[SourceQuality "1"]
[TimeControl "40/6000+30:2400+30"]

{[%evp 15,137,16,16,19,29,0,39,39,20,39,27,0,-3,-14,0,0,0,0,0,0,0,0,0,0,8,0,0,0,0,-6,0,0,0,0,-4,-33,-27,-51,-40,-45,-47,-51,-31,-30,-17,-85,-85,-130,-26,-27,-26,-75,-15,-28,-8,-37,-45,-46,-46,-46,-46,-46,-41,-273,-302,-295,-302,-295,-287,-280,-280,-272,-79,-79,-34,-34,-17,-24,-33,-33,0,0,0,0,0,0,0,0,0,0,0,0,0,0,0,0,0,0,0,0,0,0,0,0,0,0,0,0,0,0,0,0,0,0,0,0,0,0,0,0,0,0,0,0]} 1. d4 {[%emt 0:00:04]} d5 {[%emt 0:14:29]} 2. c4 {[%emt 0:00:15]} dxc4 {[%emt 0:00:38]} 3. Nf3 {[%emt 0:00:20]} Nf6 {[%emt 0:00:27]} 4. e3 {[%emt 0:00:19]} e6 {[%emt 0:00:05]} 5. Bxc4 {[%emt 0:00:30]} a6 {[%emt 0:00:05]} 6. O-O {[%emt 0:01:56]} Nbd7 {[%emt 0:04:25]} 7. Re1 {[%emt 0:03:58]} b5 {[%emt 0:01:41]} 8. Bd3 {[%emt 0:03:39]} c5 {[%emt 0:00:38]} 9. a4 {[%emt 0:13:06] D27: Queen's Gambit Accepted: Classical main line: 7 e4!? and 7 a4.} bxa4 {[%emt 0:11:04]} 10. e4 {[%emt 0:39:01] [#]} Be7 $146 {[%emt 0:09:55]} ({Predecessor:} 10... cxd4 11. e5 Nd5 12. Rxa4 Bc5 13. Nbd2 N5b6 14. Ra1 Bb7 15. Ne4 Be7 16. Bg5 O-O 17. Bxe7 Qxe7 18. Bb1 Rfd8 19. Qxd4 Rab8 {½-½ Bacrot,E (2700)-Nisipeanu,L (2684) FRA-chT Top 16 GpA 2008 (5)}) 11. d5 {[%emt 0:06:03] White is slightly better.} exd5 {[%emt 0:05:26]} 12. exd5 {[%emt 0:04:06]} O-O {[%emt 0:07:07]} 13. d6 {[%emt 0:00:28]} (13. Rxa4 Nb6 $11) 13... Bxd6 {[%emt 0:00:14]} 14. Bxh7+ $1 {[%emt 0:00:07][%mdl 64] Discovered Attack} Nxh7 {[%emt 0:00:17]} 15. Qxd6 {[%emt 0:00:07]} Bb7 {[%emt 0:04:28]} 16. Qg3 {[%emt 0:03:07]} Bxf3 {[%emt 0:05:38]} 17. Qxf3 {[%emt 0:00:25][%cal Ob1c3]} Re8 {[%emt 0:00:12]} 18. Rxe8+ {[%emt 0:07:38]} Qxe8 {[%emt 0:00:07][%cal Re8e1]} 19. Be3 {[%emt 0:00:10]} Rb8 {[%emt 0:05:05]} 20. Nc3 {[%emt 0:00:22]} Rxb2 {[%emt 0:06:35]} 21. Nxa4 {[%emt 0:00:53]} Rb8 {[%emt 0:02:14]} 22. Qc6 {[%emt 0:06:27]} Nhf6 {[%emt 0:01:28][%cal Bh7f6,Bf6e4,Be4g3][%mdl 32]} 23. h3 {[%emt 0:05:58]} Qe4 {[%emt 0:13:28]} 24. Qxe4 {[%emt 0:02:28]} Nxe4 {[%emt 0:00:02]} 25. f3 {[%emt 0:02:06]} (25. Rd1 $5 {[%cal Rd1d7]} Rb4 26. Rxd7 Rxa4 27. Re7 $11) 25... Rb3 $1 {[%emt 0:00:54]} 26. Rd1 {[%emt 0:02:30]} Rxe3 {[%emt 0:07:16]} 27. Rxd7 $15 {[%emt 0:00:23][%mdl 4096] Endgame KRN-KRN} Ra3 {[%emt 0:00:56]} 28. Nb6 {[%emt 0:00:53]} Ng3 {[%emt 0:00:32]} 29. Rc7 {[%emt 0:01:13]} Ne2+ {[%emt 0:00:52]} 30. Kf1 {[%emt 0:00:50]} (30. Kh2 $11) 30... Nf4 $1 $17 {[%emt 0:00:13]} 31. Nd7 {[%emt 0:03:01]} Ne6 {[%emt 0:04:15]} (31... a5 $17 {...a4 would be deadly.} 32. Nxc5 (32. Rxc5 $2 Ra1+ 33. Kf2 Nd3+ 34. Ke3 Nxc5 $19) 32... Ra1+ 33. Kf2 Ra2+ 34. Kf1 (34. Kg3 $2 g5 $19) 34... Nxg2) 32. Rc8+ $11 {[%emt 0:01:37]} Kh7 {[%emt 0:00:01]} 33. h4 {[%emt 0:01:20]} (33. Nf8+ $1 $11 {feels stronger.} Nxf8 34. Rxf8) 33... Ra2 {[%emt 0:03:47]} ({Black should try} 33... a5 $17 {aiming for ...a4.} 34. Rc6 (34. Nxc5 $2 {is the wrong capture.} Rc3 $19) 34... Ra1+ 35. Kf2 a4) 34. g4 {[%emt 0:01:03]} Rd2 {[%emt 0:01:34]} 35. Ne5 {[%emt 0:00:39]} (35. Nxc5 $2 {perishes.} Rc2 36. Rb8 Nxc5 $19) 35... f6 {[%emt 0:00:07]} 36. Nf7 {[%emt 0:00:12]} Rd7 {[%emt 0:00:56]} 37. Re8 $1 {[%emt 0:00:43]} Rxf7 {[%emt 0:01:07]} 38. Rxe6 $15 {[%emt 0:00:06] KR-KR} Ra7 {[%emt 0:00:09]} 39. Rc6 $2 {[%emt 0:00:38] [#]} (39. Re4 $1 $15) 39... a5 $1 $19 {[%emt 0:00:03][%cal Ba6a5,Ba5a4,Ba4a3][%mdl 32]} 40. Rxc5 {[%emt 0:00:05]} a4 {[%emt 0:00:04]} 41. Rc2 {[%emt 0:40:10]} a3 {[%emt 0:40:03]} 42. Ra2 {[%emt 0:00:03]} Kg6 {[%emt 0:00:56]} 43. Kf2 {[%emt 0:00:21] [#]} Ra4 {[%emt 0:00:31]} (43... f5 $1 $19 {has better winning chances. And now ...fxg4 would win.} 44. Ke3 Kf6) 44. Kg3 $17 {[%emt 0:00:00]} Kf7 {[%emt 0:00:00] Hoping for ...Ke6.} 45. h5 {[%emt 0:00:00]} Ke6 {[%emt 0:00:00]} 46. f4 $1 {[%emt 0:00:00]} Kd5 {[%emt 0:00:00]} 47. g5 $1 {[%emt 0:00:00]} fxg5 {[%emt 0:00:00]} 48. fxg5 {[%emt 0:00:00] The position is equal.} Kc4 {[%emt 0:00:00]} 49. h6 {[%emt 0:00:00]} gxh6 {[%emt 0:00:00]} 50. gxh6 {[%emt 0:00:00]} Kb3 {[%emt 0:00:00]} 51. h7 {[%emt 0:00:00]} Ra8 {[%emt 0:00:00]} 52. Rf2 {[%emt 0:00:00]} ({Not} 52. Rh2 $2 a2 53. Rh1 Rh8 $19) 52... a2 {[%emt 0:00:00]} 53. Rf1 {[%emt 0:00:00]} Rh8 {[%emt 0:00:00]} (53... a1=B 54. Rxa1 Re8 55. Rh1 $18) 54. Rf3+ {[%emt 0:00:00]} Kb4 {[%emt 0:00:00]} (54... Kb2 $5 55. Rf2+ $8 Kb1 56. Rf1+ Kc2 57. Rf2+ Kd3 58. Rxa2 Rxh7 $11) 55. Rf4+ {[%emt 0:00:00]} Kc3 {[%emt 0:00:00]} (55... Ka3 $5 56. Rf3+ $8 Ka4 57. Rf4+ Kb5 58. Rf5+ Kc4 $11) 56. Rf3+ $1 {[%emt 0:00:00]} Kb4 {[%emt 0:00:00]} (56... Kb2 $5 57. Rf2+ $8 Kb1 58. Rf1+ Kc2 59. Rf2+ Kd3 60. Rxa2 Rxh7 $11) 57. Rf4+ {[%emt 0:00:00]} Kb5 {[%emt 0:00:00]} (57... Ka3 $5 58. Rf3+ $8 Kb2 59. Rf2+ Kb1 60. Rf1+ Kc2 61. Rf2+ Kd3 62. Rxa2 Rxh7 $11) 58. Rf5+ {[%emt 0:00:00]} Kb6 {[%emt 0:00:00]} (58... Kb4 $5 59. Rf4+ $8 $11) 59. Rf6+ {[%emt 0:00:00]} Kb7 {[%emt 0:00:00]} 60. Rf7+ {[%emt 0:00:00]} Kb8 {[%emt 0:00:00]} (60... Kb6 $5 61. Rf6+ $8 Kc5 $11) 61. Rf1 {[%emt 0:00:00]} Rxh7 {[%emt 0:00:00]} 62. Ra1 $1 {[%emt 0:00:00]} Ra7 {[%emt 0:00:00]} 63. Kf3 {[%emt 0:00:00]} Kc7 {[%emt 0:00:00] ( -> ...Kb6)} 64. Ke3 {[%emt 0:00:00]} Kc6 {[%emt 0:00:00] White must now prevent ...Kc5.} 65. Kd3 $1 {[%emt 0:00:00]} Kc5 {[%emt 0:00:00] Strongly threatening ...Kb4.} 66. Kc3 {[%emt 0:00:00]} Ra3+ {[%emt 0:00:00]} 67. Kb2 {[%emt 0:00:00]} Kb4 {[%emt 0:00:00]} 68. Rxa2 {[%emt 0:00:00]} Rxa2+ {[%emt 0:00:00]} 69. Kxa2 {[%emt 0:15:40] Whites escaped into a draw.   Weighted Error Value: White=0.13 (very precise) /Black=0.14 (very precise)} 1/2-1/2

[Event "4NCL 2022-2023"]
[Site "Daventry"]
[Date "2023.03.19"]
[Round "8.18"]
[White "Parligras, Mircea-Emilian"]
[Black "Skulte, Christopher"]
[Result "1-0"]
[ECO "D25"]
[WhiteElo "2570"]
[BlackElo "2086"]
[Annotator "TA"]
[PlyCount "47"]
[EventDate "2022.10.20"]
[EventType "team-tourn"]
[EventCountry "ENG"]
[SourceTitle "playchess.com"]
[Source "ChessBase"]
[SourceQuality "1"]
[TimeControl "40/6000+30:2400+30"]

{[%evp 9,46,44,66,53,71,65,73,59,41,71,79,60,175,190,184,201,291,166,239,237,234,237,374,381,391,393,723,676,1139,1128,1095,1074,29992,29993,29994,29995,29995,29996,29999]} 1. d4 {[%emt 0:12:05]} d5 {[%emt 0:00:11]} 2. c4 {[%emt 0:00:08]} dxc4 {[%emt 0:00:29]} 3. Nf3 {[%emt 0:00:09]} Nf6 {[%emt 0:00:20]} 4. e3 {[%emt 0:00:07]} Be6 {[%emt 0:01:17]} 5. Nc3 {[%emt 0:01:13]} c6 {[%emt 0:01:02]} 6. Ng5 {[%emt 0:07:01] Strongly threatening Nxe6. D25: Queen's Gambit Accepted: 4 e3: sidelines and 4...Bg4.} Bd5 {[%emt 0:18:46]} 7. e4 {[%emt 0:00:23]} h6 $1 {[%emt 0:00:04]} 8. exd5 {[%emt 0:00:05][%cal Og5f7] aiming for Nxf7! White is better.} hxg5 {[%emt 0:00:06]} 9. dxc6 {[%emt 0:00:05]} (9. Bxg5 cxd5 10. Bxf6 gxf6 11. Qa4+ Nc6 12. Bxc4 dxc4 $15) 9... Nxc6 {[%emt 0:01:54]} 10. d5 {[%emt 0:00:59]} (10. Bxc4 e6 $11) (10. Bxg5 e6 $11) 10... Na5 {[%emt 0:18:07]} ({Better is} 10... Ne5 $14) 11. Qa4+ $18 {[%emt 0:07:53]} (11. Bxg5 a6 $16) 11... Nd7 {[%emt 0:00:20]} 12. Bxg5 {[%emt 0:00:23][%cal Ob2b4] [#]} (12. Bxc4 Rh4 13. f4 (13. Bxg5 $2 Rxc4 14. Qc2 b5 $19) (13. b3 $2 a6 $17) 13... Nxc4 14. Qxc4 Qb6 $15) 12... Qb6 $146 {[%emt 0:03:41]} (12... g6 $142 13. d6 (13. Bxc4 Nxc4 14. Qxc4 Rc8 $16) 13... f6) ({Predecessor:} 12... a6 13. b4 cxb3 14. axb3 b6 15. b4 Qc7 16. Rc1 Nc4 17. Qc6 Rc8 18. Bxc4 Qe5+ {1-0 Rau,H (2466)-Haag,U (2134) Staufer op 22nd 2010 (8)}) 13. Bxc4 {[%emt 0:09:05]} (13. b4 $142) 13... Qxb2 {[%emt 0:02:45] [#]} (13... Nxc4 {is a better defense.} 14. Qxc4 e5) 14. O-O $1 {[%emt 0:00:42][%cal Oc4b5] Bb5! would be deadly.} Qxc3 {[%emt 0:02:54]} 15. Bb5 {[%emt 0:00:14]} Qc7 {[%emt 0:00:24] [#]} (15... Rd8 $2 16. Rac1 $18) (15... Qc8 $142 16. Qxa5 a6) 16. d6 $1 {[%emt 0:13:59][%mdl 512] Active counter play!} Qxd6 {[%emt 0:13:47][%csl Gh8][%cal Rd6h2] [#]} 17. Bf4 {[%emt 0:00:26] A strong pair of Bishops.} (17. Bxd7+ Qxd7 18. Qxa5 b6 $11) 17... Rh4 $2 {[%emt 0:00:56]} (17... e5 $2 18. Rfd1 O-O-O 19. Rxd6 Bxd6 20. Bd2 $18) (17... a6 18. Bxd6 axb5) 18. Rad1 {[%emt 0:00:35][%cal Ba1d1,Bd1c1,Bc1c8][%mdl 32]} (18. Qxa5 $2 {loses.} Rxf4 19. Rad1 Rd4 20. Rxd4 Qxd4 $19) 18... Rxf4 {[%emt 0:00:59]} 19. Bxd7+ {[%emt 0:00:28]} Kd8 {[%emt 0:00:18]} 20. Qxa5+ {[%emt 0:00:11]} Qb6 {[%emt 0:01:43]} 21. Ba4+ {[%emt 0:04:47] White mates.} Kc8 {[%emt 0:00:34]} 22. Rc1+ {[%emt 0:00:07]} Kb8 {[%emt 0:00:19] [#]} 23. Bd7 $1 {[%emt 0:00:12][%csl Gd7][%cal Rc1c8]} Qxa5 {[%emt 0:00:44]} (23... Qxf2+ 24. Rxf2) 24. Rc8# {[%emt 0:00:05] A superb game by Parligras.   Weighted Error Value: White=0.14 (very precise) /Black=0.85} 1-0